Cogmind - Beta 15 @@@ ROGUE MODE // 2025.05.28 @ 22:44:58 Player: the Result: Destroyed by Q2-HR5(R) with Subdweller Laser Performance ------------- Evolutions (0) 0 Regions Visited (3) 600 Robots Destroyed (25) 125 Value Destroyed (560) 560 Prototype IDs (3) 60 Alien Tech Used (0) 0 Bonus (0) 0 TOTAL SCORE: 1345 Bonus ------- None Cogmind --------- Core Integrity 0/250 Matter 245/300 Energy 22/100 System Corruption 2% Temperature Cool (6) Movement Treading (240) Ox1 Location -10/Subcaves Parts ------- > --- POWER (1) -------- (None) > --- PROPULSION (2) --- Light Treads Wheel > --- UTILITY (2) ------ Large Storage Unit Light Armor Plating > --- WEAPON (2) ------- Beam Cannon Beam Cannon > --- INVENTORY (15) --- Ion Engine Wheel Heat Sink Improved Heat Sink Medium Battery (150) Compact Matter Pod (150) Compact Matter Pod (150) Beam Cannon Heavy Battle Rifle Light Cannon Grenade Launcher Rocket Launcher Mining Laser Peak State ------------ > --- POWER ------------ Ion Engine > --- PROPULSION ------- Light Treads Light Treads > --- UTILITY ---------- Improved Heat Sink Large Storage Unit > --- WEAPON ----------- Beam Cannon Mining Laser > --- INVENTORY -------- Ion Engine Wheel Wheel Heat Sink Medium Battery Compact Matter Pod Compact Matter Pod Seismic Detector Light Armor Plating Beam Cannon Beam Cannon Heavy Battle Rifle Light Cannon Grenade Launcher Rocket Launcher [Rating: 11] Favorites ----------- Power Ion Engine Engine Ion Engine Propulsion Wheel Treads Light Treads Wheel Wheel Utility Large Storage Unit Device Seismic Detector Storage Large Storage Unit Protection Light Armor Plating Weapon Heavy EM Pulse Gun Energy Gun Heavy EM Pulse Gun Energy Cannon Beam Cannon Ballistic Gun Assault Rifle Launcher Rocket Launcher Special Weapon Mining Laser Build | -11 -10 -10 -10 ------- Run | Yrd Mat Min Sub Slots Evolved . | . . . . Power . | . . . . Propulsion . | . . . . Utility . | . . . . Weapon . | . . . . Parts Attached 26 | 7 10 9 . Power 4 | 1 2 1 . Engine 4 | 1 2 1 . Core . | . . . . Reactor . | . . . . Propulsion 4 | 2 . 2 . Treads 2 | . . 2 . Leg . | . . . . Wheel 2 | 2 . . . Hover . | . . . . Flight . | . . . . Utility 8 | 2 3 3 . Device 4 | 1 2 1 . Storage 2 | 1 1 . . Processor . | . . . . Hackware . | . . . . Protection 2 | . . 2 . Artifact . | . . . . Weapon 10 | 2 5 3 . Energy Gun 3 | . 3 . . Energy Cannon 2 | . . 2 . Ballistic Gun 3 | 2 1 . . Ballistic Cannon . | . . . . Launcher 1 | . . 1 . Special Weapon 1 | . 1 . . Impact Weapon . | . . . . Slashing Weapon . | . . . . Piercing Weapon . | . . . . Special Melee Weapon . | . . . . Unidentified Prototypes . | . . . . Corrupted Parts 1 | . . 1 . System Corruption 2 | . . 2 . Parts Lost 7 | . 1 3 3 Power 1 | . . . 1 Propulsion 1 | . . . 1 Utility 2 | . . 1 1 Weapon 3 | . 1 2 . Highest Loss Streak 3 | . 1 3 3 To Critical Strikes . | . . . . Average Backups 12 | 4 11 14 15 Power . | . 1 1 1 Propulsion 2 | 2 2 2 2 Utility 3 | . 3 4 6 Weapon 5 | 1 5 6 6 Tool/Special . | . . . . Unused Backups 13 | . 4 1 8 Power 1 | . . . 1 Propulsion 2 | . 2 . . Utility 5 | . 1 1 3 Weapon 5 | . 1 . 4 Tool/Special . | . . . . Average Slot Usage (%) 99 | . 99 99 97 Engine 13 | . 14 14 11 Treads 14 | . . 26 26 Wheel 13 | . 28 1 1 Device 11 | . 14 9 12 Storage 14 | . 14 14 14 Protection 2 | . . 4 1 Energy Gun 11 | . 10 12 . Energy Cannon 7 | . . 12 28 Ballistic Gun 7 | . 15 . . Special Weapon 1 | . . 1 . Peak Build Rating 11 | 7 10 11 11 Average Rating 8 | 5 8 9 10 On Entrance 7 | . 7 10 11 Naked Turns . | . . . . Heaviest Build 34 | 13 32 34 32 Greatest Support 40 | 20 20 40 40 Greatest Overweight (x) 1 | 1 1 1 . Average Overweight (x) . | . . . . Largest Inventory Capacity 15 | 8 15 15 15 Average Capacity 13 | 7 13 15 15 Most Carried 15 | 8 15 15 15 Average Carried 12 | 4 11 14 14 Final Capacity 15 | 8 15 15 15 Final Carried 15 | 8 14 15 13 Class Distribution -------------------- 100% | Mutant Dominant Class ---------------- Mutant | -10/Materials Mutant | -10/Mines Mutant | -10/Subcaves Resources | -11 -10 -10 -10 ----------- Run | Yrd Mat Min Sub Matter Collected 791 | 366 330 95 . Remotely . | . . . . Salvage Created 697 | 194 403 56 44 Parts 53 | 15 33 3 2 Haulers Intercepted 1 | . 1 . . Recyclers Shooed 3 | 1 1 1 . Parts Field Recycled . | . . . . Retrieved Matter . | . . . . Parts Self-Destructed 6 | . . . 6 Prevented . | . . . . Kills | -11 -10 -10 -10 ------- Run | Yrd Mat Min Sub Combat Hostiles Destroyed 12 | . 8 3 1 Guns 10 | . 8 2 . Cannons 2 | . . 1 1 Classes Destroyed 10 | 2 6 1 1 Tunneler 6 | 5 1 . . Hauler 1 | . 1 . . Recycler 2 | 1 1 . . Mechanic 1 | . 1 . . Operator 2 | . 2 . . Watcher 1 | . 1 . . Swarmer 3 | . 3 . . Grunt 6 | . 5 1 . Demolisher 2 | . . 2 . Subdweller 1 | . . . 1 Best Kill Streak 4 | 4 4 2 1 Combat Bots Only 3 | . 3 2 1 Max Kills in Single Turn 2 | 1 2 1 1 Gunslinging 1 | . 1 . . Exploded . | . . . . Melee . | . . . . Uniques/NPCs Destroyed . | . . . . Combat | -11 -10 -10 -10 -------- Run | Yrd Mat Min Sub Hostile Shots Fired 67 | . 41 16 10 Missed 19 | . 14 2 3 Hits 48 | . 27 14 7 Projectile 48 | . 27 14 7 AOE 16 | . . 14 2 Damage Taken 1069 | . 296 542 231 Core 253 | . 68 121 64 Absorbed by Shields . | . . . . Core Remaining (%) 100 | 100 . . . Volleys Fired 88 | 16 42 25 5 Largest 2 | 2 2 2 2 Hottest 120 | 40 100 120 120 Shots Fired 155 | 32 73 40 10 Gun 122 | 32 65 25 . Cannon 20 | . . 10 10 Launcher . | . . . . Special 13 | . 8 5 . Kinetic 87 | 32 55 . . Thermal 33 | . 8 15 10 Explosive . | . . . . Electromagnetic 35 | . 10 25 . Robot Hit Streak 11 | 3 6 4 11 Robot Miss Streak 5 | 3 4 5 . Penetration Max . | . . . . Secondary Targets 2 | . 2 . . Max Gunslinging Chain 1 | . 1 . . Shots Hit Robots 79 | 15 38 16 10 Core Hits 36 | 7 21 5 3 Critical Kills . | . . . . Critical Parts Destroyed . | . . . . Critical Strikes . | . . . . Melee Attacks . | . . . . Impact . | . . . . Slashing . | . . . . Piercing . | . . . . Sneak Attacks . | . . . . Combat Hostiles . | . . . . Follow-up Attacks . | . . . . Damage Inflicted 1295 | 188 711 254 142 Guns 908 | 188 537 183 . Cannons 213 | . . 71 142 Explosions 174 | . 174 . . Melee . | . . . . Ramming . | . . . . Kinetic 619 | 188 431 . . Thermal 387 | . 174 71 142 Explosive . | . . . . Electromagnetic 289 | . 106 183 . Impact . | . . . . Slashing . | . . . . Piercing . | . . . . Highest Corruption 2 | . . 2 2 Average Corruption 2 | . . 2 2 Corruption Purged . | . . . . Corruption Blocked . | . . . . Effects 2 | . . 1 1 Matter Fused 1 | . . . 1 Data Loss (minor) 1 | . . 1 . Overload Shots . | . . . . Overflow Damage 63 | . 46 17 . Projectiles 17 | . . 17 . Explosions 46 | . 46 . . Melee . | . . . . Knockbacks . | . . . . Impact . | . . . . Kinetic . | . . . . Secondary . | . . . . Self-Inflicted Damage . | . . . . Shots . | . . . . Rammed . | . . . . Targets Rammed . | . . . . Kicked . | . . . . Crushed . | . . . . Highest Temperature 308 | . 100 308 1 Average Temperature 102 | . 34 149 1 Received Heat Transfer 162 | . 132 6 24 Siege Activations . | . . . . Martial Activations . | . . . . Shielding Activations . | . . . . Robots Disrupted . | . . . . Combat Hostiles . | . . . . Robots Corrupted . | . . . . Combat Hostiles . | . . . . Parts Fried . | . . . . Impact Corruptions . | . . . . Robots Melted . | . . . . Combat Hostiles . | . . . . Parts Melted . | . . . . Heat Transferred 594 | . 150 148 296 Parts Sabotaged . | . . . . Parts Stolen . | . . . . Parts Stripped . | . . . . Power Chain Reactions . | . . . . Alert | -11 -10 -10 -10 ------- Run | Yrd Mat Min Sub Maximum Alert Level 1 | . 1 . . Low Security (%) 98 | 100 97 100 . Level 1 1 | . 2 . . Level 2 . | . . . . Level 3 . | . . . . Level 4 . | . . . . Level 5 . | . . . . High Security . | . . . . Max Security . | . . . . Peak Influence 203 | 15 203 34 . Initial 34 | . 3 34 . Average 51 | 2 110 3 . Influence Increases 494 | 30 394 70 . Destroy 0b10 Robot/C 220 | . 160 60 . Destroy 0b10 Robot/NC 65 | 30 35 . . Destroy Leader 44 | . 34 10 . Successful Hack 62 | . 62 . . Disable Machine 75 | . 75 . . Destroy Structure 13 | . 13 . . Lose Combat Pursuer 15 | . 15 . . Influence Decreases 494 | 25 309 160 . Entered New Map 58 | . 2 56 . Time Decay 406 | 25 297 84 . Lost Part 30 | . 10 20 . Squads Dispatched 1 | . 1 . . Investigation 1 | . 1 . . Extermination . | . . . . Reinforcement . | . . . . Assault . | . . . . Garrison . | . . . . Intercept . | . . . . Searches Triggered . | . . . . Construction Impeded . | . . . . Haulers Reinforced . | . . . . Active Scanning Responses . | . . . . Cargo Convoy Interrupts . | . . . . Stealth | -11 -10 -10 -10 --------- Run | Yrd Mat Min Sub Distress Signals 2 | . 2 . . Communications Jammed . | . . . . Distress Signals . | . . . . Times Spotted 18 | . 11 4 3 Peak Tracking Total 3 | . 3 2 3 Tactical Retreats 2 | . 1 1 . Traps | -11 -10 -10 -10 ------- Run | Yrd Mat Min Sub Traps Triggered 4 | . 4 . . Indirectly . | . . . . Trap Hack Attempts . | . . . . Triggered . | . . . . Disarmed 1 | . 1 . . Reprogrammed . | . . . . Reused . | . . . . Traps Extracted . | . . . . Installed . | . . . . Triggered . | . . . . Machines | -11 -10 -10 -10 ---------- Run | Yrd Mat Min Sub Machines Disabled 5 | . 5 . . Max in Single Turn 4 | . 4 . . Machines Repaired . | . . . . Machines Dismantled . | . . . . Machines Sabotaged . | . . . . Overloaded Fab Kills . | . . . . Hacking | -11 -10 -10 -10 --------- Run | Yrd Mat Min Sub Machines Accessed 7 | . 7 . . Terminals 7 | . 7 . . Fabricators . | . . . . Repair Stations . | . . . . Recycling Units . | . . . . Scanalyzers . | . . . . Garrison Access . | . . . . Total Hacks 33 | . 33 . . Successful 18 | . 18 . . Failed 15 | . 15 . . Catastrophic 1 | . 1 . . Database Lockouts . | . . . . Manual 21 | . 21 . . Terminals 33 | . 33 . . Fabricators . | . . . . Repair Stations . | . . . . Recycling Units . | . . . . Scanalyzers . | . . . . Garrison Access . | . . . . Terminal Hacks 13 | . 13 . . Record 1 | . 1 . . Part Schematic 1 | . 1 . . Prototype ID Bank 2 | . 2 . . Branch Access Points 1 | . 1 . . Alert Level 1 | . 1 . . Locate Traps 1 | . 1 . . Disarm Traps 1 | . 1 . . Dispatch Records 1 | . 1 . . Hauler Manifests 1 | . 1 . . Registered Components 1 | . 1 . . Zone Layout 2 | . 2 . . Fabricator Hacks . | . . . . Repair Station Hacks . | . . . . Recycling Unit Hacks . | . . . . Scanalyzer . | . . . . Garrison Access Hacks . | . . . . Unauthorized Hacks 5 | . 5 . . Terminals 5 | . 5 . . Assimilate 1 | . 1 . . Botnet 3 | . 3 . . Operators 1 | . 1 . . Fabricators . | . . . . Repair Stations . | . . . . Recycling Units . | . . . . Scanalyzers . | . . . . Garrison Access . | . . . . Data Cores Recovered 2 | . 2 . . Used 1 | . 1 . . Hacking Detections 7 | . 7 . . Full Trace Events . | . . . . Feedback Events . | . . . . Feedback Blocked . | . . . . Robot Schematics Acquired . | . . . . Robots Built . | . . . . Authchips . | . . . . Time . | . . . . Total Robot Build Rating . | . . . . Part Schematics Acquired 1 | . 1 . . Parts Built . | . . . . Authchips . | . . . . Time . | . . . . Total Part Build Rating . | . . . . Parts Repaired . | . . . . Time . | . . . . Parts Recycled . | . . . . Recycled Matter . | . . . . Retrieved Matter . | . . . . Retrieved Components . | . . . . Parts Scanalyzed . | . . . . Part Schematics Acquired . | . . . . Parts Damaged . | . . . . Bothacking | -11 -10 -10 -10 ------------ Run | Yrd Mat Min Sub Used RIF Installer . | . . . . Robots Hacked . | . . . . Non-combat . | . . . . Combat . | . . . . Robot Hacks Applied . | . . . . Relay Couplers Released . | . . . . Fabnet Peak Effective % . | . . . . Robots Rewired . | . . . . Allies Hacked . | . . . . Hacks Repelled . | . . . . Allies | -11 -10 -10 -10 -------- Run | Yrd Mat Min Sub Total Allies . | . . . . Largest Group . | . . . . Highest-Rated Group . | . . . . Highest-Rated Ally . | . . . . Total Orders . | . . . . Ally Attacks . | . . . . Total Damage . | . . . . Kills . | . . . . Allies Corrupted . | . . . . Allies Melted . | . . . . Intel | -11 -10 -10 -10 ------- Run | Yrd Mat Min Sub Active Infowar (turns) 809 | 55 635 92 27 Seismic 809 | 55 635 92 27 Robot Analysis Total . | . . . . Derelict Logs Recovered 2 | . . 2 . Drone Launches . | . . . . Drone Recoveries . | . . . . Exploration | -11 -10 -10 -10 ------------- Run | Yrd Mat Min Sub Turns Passed 1779 | 117 756 818 88 Spaces Moved 1050 | 66 559 382 43 Core 5 | 5 . . . Treads 385 | . . 342 43 Legs . | . . . . Wheels 660 | 61 559 40 . Hover . | . . . . Flight . | . . . . Fastest Speed 50 | 50 80 95 160 Average Speed 115 | 77 91 153 160 Slowest Speed 160 | 95 95 160 160 Overloaded Moves . | . . . . Propulsion Burnouts . | . . . . Robots Hopped . | . . . . Potential Cave-ins . | . . . . Cave-ins Triggered . | . . . . Exploration Rate (%) 47 | 4 95 84 7 Regions Visited 3 Branch Regions 2 Pre-discovered Areas 1 | . . 1 . Known Exits Taken 1 | . 1 . . Unknown Exits Taken 2 | 1 . 1 . Scrap Searched . | . . . . Spaces Dug 7 | . 7 . . Terrain Destroyed 14 | . 14 . . Melee . | . . . . Projectile 7 | . 7 . . AOE 7 | . 7 . . Terrain Rammed . | . . . . Walls Destroyed . | . . . . Machines Disabled . | . . . . Actions | -11 -10 -10 -10 --------- Run | Yrd Mat Min Sub Total 1425 | 98 714 561 52 Wait 206 | . 71 134 1 Move 1047 | 65 558 381 43 Hop . | . . . . Pick Up 28 | 9 14 5 . Fast Attach 14 | 7 7 . . Attach 6 | . 1 3 2 Detach . | . . . . Swap 21 | . 9 11 1 Drop 15 | 1 12 2 . Fire 88 | 16 42 25 5 Melee . | . . . . Ram . | . . . . Kick . | . . . . Crush . | . . . . Escape Stasis . | . . . . Rewire . | . . . . Trap . | . . . . Miscellaneous . | . . . . Route ------- -11/Scrapyard -10/Materials (discovered 6 exits: [*Mat x3] / *Min x2 / [*Sub]) -10/Mines (discovered 2 exits: [*Mat] / [*Sub]) -10/Subcaves History --------- Turn | Location | Event 8 | -11/Scrapyard | Discovered new exit (range 16) 118 | -11/Scrapyard | Entered Materials 119 | -10/Materials | Met a group of wandering Federalists 120 | -10/Materials | Discovered new exit (range 10) 271 | -10/Materials | Discovered new exit (range 4) 311 | -10/Materials | Discovered new exit (range 16) 326 | -10/Materials | Build established: Mutant 393 | -10/Materials | Identified exit to Mines 441 | -10/Materials | Discovered new exit (range 15) 536 | -10/Materials | Discovered new exit (range 9) 713 | -10/Materials | Discovered new exit (range 16) 874 | -10/Materials | Entered Mines 881 | -10/Mines | Received a Rocket Launcher from a helpful Derelict 886 | -10/Mines | Assembled infested the area 1085 | -10/Mines | Learned location of Zion (-6) 1232 | -10/Mines | Core integrity fell below 50% 1284 | -10/Mines | Lost 3 parts (1u2w) 1308 | -10/Mines | A weapon hastily lodged in a ceiling crevice suddenly fell to the ground 1482 | -10/Mines | Discovered new exit (range 6) 1609 | -10/Mines | Discovered new exit (range 3) 1692 | -10/Mines | Entered Subcaves 1764 | -10/Subcaves | A Subdweller sparked back to life 1764 | -10/Subcaves | A Subdweller sparked back to life 1773 | -10/Subcaves | Core integrity fell below 20% 1780 | -10/Subcaves | Destroyed by Q2-HR5(R) with Subdweller Laser Last Messages --------------- 01490_ Dropped Lrg. Matter Pod. 01492_ Acquired Com. Matter Pod. 01609_ EXIT=FOUND 01615_ Integrated Corrupted Imp. Heat Sink (+2). 01615_ Corrupted Imp. Heat Sink temporarily disabled. 01635_ System corrupted: Component data lost. LOCATION=UNKNOWN AMBIENT_HEAT=-10 GOAL=ESCAPE 01706_ System corrupted: Matter fused (-10). 01764_ 46-529(R) creaks and sparks as it begins to move. 01764_ 8U-DMV(R) creaks and sparks as it begins to move. 01765_ Ion Engine destroyed. 01773_ 46-529(R) destroyed. 01774_ Seismic Detector destroyed. 01776_ Lgt. Treads destroyed. 01780_ Subatomizers dissect the Sub. Optics. Map ----- +----------------------------------------------------+ | ?????????????????????????????????????????????????? | | ?????????????????????????????????????????????????? | | ?????????????????????????????????????????????????? | | ?????????????????????????????????????????????????? | | ?????????????????????????????????????????????????? | | ?????????????? ?????????????????????????????????? | | ?????????#??? ??????????????????????????????????? | | ???????? ##? ???????????????????????????????????? | | ???????? ## ????????????????????????????????????? | | ???????? ?????? #????????????????????????????? | | ???????? ??????? #????????????????????????????? | | ??????? ???????? ##???????????????????????????? | | ##????? #???????? #???????????????????????????? | | ###??? #??????## #???????????????????????????? | | #### ##???### ????????????????????????????? | | ## # ### #????????????????????????????? | | # ###??????????????????????????? | | # ? ##?????????????????????????? | | ######## #?# #?????????????????????????? | | ##??????# ### #????###??????????????????? | | ##???????# ###### #??????????????????? | | #????????# #;; ; ;#??????????????????? | | ##????#### #### #??????????????????? | | ###### #??????????????????? | | ### R#???????????? | | ### ; @ R